bitfinex/quotes_SOLUSD_20241111
["timestamp","ask_amount","ask_price","bid_price","bid_amount"]
[1731356409575,21.94410523,219.01,218.94,21.94410523]
[1731356409891,21.94410523,219.06,218.98,21.94410523]
[1731356410096,21.94410523,219.07,219.0,21.94410523]
[1731356410277,21.94410523,219.08,219.01,21.94410523]
[1731356410485,21.94410523,219.1,219.01,21.94410523]
[1731356410990,21.94410523,219.08,218.99,21.94410523]
[1731356411197,21.94410523,219.06,218.97,21.94410523]
[1731356411379,21.94410523,219.04,218.95,28.56800523]
[1731356411690,27.85160864,219.12,218.95,28.56800523]
[1731356411691,21.94410523,219.06,218.99,21.94410523]
[1731356411901,21.94410523,219.08,218.99,21.94410523]
[1731356412100,21.94410523,219.08,218.95,6.6239]
[1731356412101,20.0,219.07,219.01,21.94410523]
[1731356412282,21.94410523,219.1,219.03,21.94410523]
[1731356412799,21.94410523,219.1,219.01,21.94410523]
[1731356413104,21.94410523,219.12,219.05,21.94410523]
[1731356413887,21.94410523,219.12,218.97,0.1]
[1731356414214,21.94410523,219.08,219.01,23.776884]
[1731356414498,21.94410523,219.1,219.02,21.94410523]
[1731356414699,21.94410523,219.1,219.04,21.94410523]
[1731356415195,21.94410523,219.12,219.04,21.94410523]
[1731356415502,21.94410523,219.1,219.03,23.776884]
[1731356415702,21.94410523,219.12,219.04,21.94410523]
[1731356416079,21.94410523,219.1,219.02,21.94410523]
[1731356416282,21.94410523,219.08,219.0,21.94410523]
[1731356416583,20.0,219.08,219.02,21.94410523]
[1731356416986,41.94410523,219.08,219.0,21.94410523]
[1731356417186,21.94410523,219.1,219.02,21.94410523]
[1731356417589,20.0,219.09,219.02,21.94410523]
[1731356417981,21.94410523,219.12,219.04,21.94410523]
[1731356418186,21.94410523,219.1,219.02,21.94410523]
[1731356419309,21.94410523,219.08,219.0,21.94410523]
[1731356419805,21.94410523,219.02,218.95,6.6239]
[1731356420102,21.94410523,218.98,218.91,21.94410523]
[1731356421103,21.94410523,219.0,218.91,21.94410523]
[1731356421475,21.94410523,219.0,218.92,23.776884]
[1731356421705,21.94410523,219.04,218.95,21.94410523]
[1731356421886,6.007,219.12,219.01,21.94410523]
[1731356422081,21.94410523,219.07,218.99,21.94410523]
[1731356422796,9.40713479,219.06,218.99,21.94410523]
[1731356422985,21.94410523,219.07,218.99,21.94410523]
[1731356423316,21.94410523,219.05,218.98,23.776884]
[1731356423906,27.95110523,219.12,218.98,23.776884]
[1731356423907,21.94410523,219.09,219.01,21.94410523]
[1731356424078,21.94410523,219.09,219.02,23.776884]
[1731356424283,21.94410523,219.09,219.01,21.94410523]
[1731356424485,21.94410523,219.07,219.0,23.776884]
[1731356424685,21.94410523,219.09,219.02,23.776884]
[1731356425426,21.94410523,219.07,218.98,23.776884]
[1731356425901,21.94410523,219.05,218.98,23.776884]
[1731356426101,21.94410523,219.05,218.97,21.94410523]
[1731356426794,21.94410523,219.05,218.95,21.94410523]
[1731356427111,21.94410523,219.01,218.93,21.94410523]
[1731356427489,22.04410523,219.12,218.89,6.1625]
[1731356427490,21.94410523,219.03,218.95,21.94410523]
[1731356427694,21.94410523,219.05,218.97,21.94410523]
[1731356428010,21.94410523,219.07,218.97,21.94410523]
[1731356428183,21.94410523,219.11,219.04,23.776884]
[1731356428586,21.94410523,219.13,219.06,23.776884]
[1731356429201,16.8867427,219.21,219.06,23.776884]
[1731356429512,16.8867427,219.21,219.1,21.94410523]
[1731356429697,21.94410523,219.18,219.1,21.94410523]
[1731356430014,21.94410523,219.18,219.11,23.776884]
[1731356430499,21.94410523,219.16,219.08,21.94410523]
[1731356430883,21.94410523,219.14,219.07,23.776884]
[1731356431084,21.94410523,219.12,219.04,21.94410523]
[1731356431296,21.94410523,219.14,219.06,21.94410523]
[1731356431502,21.94410523,219.14,219.07,23.776884]
[1731356431712,21.94410523,219.16,219.08,21.94410523]
[1731356432503,21.94410523,219.18,219.1,21.94410523]
[1731356432714,21.94410523,219.2,219.12,21.94410523]
[1731356433087,21.94410523,219.18,219.1,21.94410523]
[1731356433288,21.94410523,219.16,219.08,21.94410523]
[1731356433498,21.94410523,219.16,219.07,23.776884]
[1731356433696,21.94410523,219.16,218.98,0.1]
[1731356433697,20.0,219.16,218.91,6.5847]
[1731356433902,30.345084,219.17,218.91,6.5847]
[1731356433903,21.94410523,218.99,218.91,21.94410523]
[1731356434116,0.1,219.09,218.93,21.94410523]
[1731356434408,21.94410523,219.0,218.92,21.94410523]
[1731356434612,21.94410523,219.04,218.94,21.94410523]
[1731356435293,21.94410523,218.98,218.9,21.94410523]
[1731356435995,21.94410523,219.0,218.9,21.94410523]
[1731356436390,21.94410523,219.0,218.92,21.94410523]
[1731356436895,21.94410523,219.02,218.94,21.94410523]
[1731356438709,21.94410523,219.02,218.86,6.5662]
[1731356438710,21.94410523,219.0,218.92,21.94410523]
[1731356438895,21.94410523,219.0,218.86,6.5662]
[1731356438896,21.94410523,218.98,218.9,21.94410523]
[1731356439310,21.94410523,218.96,218.88,21.94410523]
[1731356440415,21.94410523,218.94,218.86,21.94410523]
[1731356440591,21.94410523,218.92,218.84,21.94410523]
[1731356440791,0.1,218.97,218.81,6.6572]
[1731356440792,21.94410523,218.96,218.87,21.94410523]
[1731356442012,21.94410523,218.94,218.87,21.94410523]
[1731356442517,9.46175318,218.93,218.87,21.94410523]
[1731356442713,21.94410523,218.94,218.87,21.94410523]
[1731356442895,15.478,219.02,218.81,6.6572]
[1731356442896,15.378,219.02,218.93,21.94410523]
[1731356443095,21.94410523,219.01,218.93,21.94410523]
[1731356443400,21.94410523,219.03,218.95,21.94410523]
[1731356445812,21.94410523,219.01,218.93,21.94410523]
[1731356446003,21.94410523,219.01,218.94,23.776884]
[1731356446901,21.94410523,219.01,218.93,21.94410523]
[1731356447314,21.94410523,219.01,218.94,23.776884]
[1731356447548,21.94410523,218.99,218.92,23.776884]
[1731356447720,21.94410523,218.99,218.91,21.94410523]
[1731356447898,21.94410523,218.97,218.89,37.16130523]
[1731356448098,21.94410523,218.95,218.87,21.94410523]
[1731356448299,21.94410523,218.95,218.85,21.94410523]
[1731356449018,21.94410523,218.91,218.83,21.94410523]
[1731356449222,21.94410523,218.89,218.81,21.94410523]
[1731356449426,21.94410523,218.91,218.83,21.94410523]
[1731356450114,21.94410523,218.89,218.81,21.94410523]
[1731356452017,23.33036932,218.96,218.79,21.94410523]
[1731356452018,21.94410523,218.87,218.79,21.94410523]
[1731356452219,21.94410523,218.87,218.76,6.2278]
[1731356452220,21.94410523,218.85,218.77,21.94410523]
[1731356452531,21.94410523,218.87,218.77,21.94410523]
[1731356452729,21.94410523,218.82,218.71,6.4133]
[1731356452918,21.94410523,218.82,218.74,21.94410523]
[1731356453115,21.94410523,218.84,218.74,21.94410523]
[1731356453420,21.94410523,218.8,218.71,28.35740523]
[1731356454424,6.1784,218.86,218.71,6.4133]
[1731356454425,21.94410523,218.78,218.71,6.4133]
[1731356454727,21.94410523,218.78,218.62,0.1]
[1731356454728,21.94410523,218.72,218.62,21.94410523]
[1731356454931,21.94410523,218.7,218.62,21.94410523]
[1731356455304,21.94410523,218.71,218.64,21.94410523]
[1731356455728,4.50518173,218.77,218.62,21.94410523]
[1731356455729,21.94410523,218.69,218.62,21.94410523]
[1731356456233,21.94410523,218.66,218.57,6.1768]
[1731356456442,21.94410523,218.68,218.61,21.94410523]
[1731356456728,21.94410523,218.7,218.61,21.94410523]
[1731356456921,21.94410523,218.68,218.61,21.94410523]
[1731356457512,21.94410523,218.68,218.58,23.776884]
[1731356457728,21.94410523,218.68,218.6,23.776884]
[1731356458034,21.94410523,218.66,218.57,28.12090523]
[1731356458230,21.94410523,218.64,218.57,21.94410523]
[1731356459039,21.94410523,218.66,218.59,21.94410523]
[1731356459207,21.94410523,218.66,218.57,21.94410523]
[1731356459406,21.94410523,218.68,218.61,21.94410523]
[1731356459633,21.94410523,218.63,218.43,0.1]
[1731356459932,21.94410523,218.63,218.35,18.294232]
[1731356459933,21.94410523,218.56,218.48,21.94410523]
[1731356460241,21.94410523,218.54,218.46,21.94410523]
[1731356460543,11.46578904,218.62,218.44,6.5081]
[1731356460544,21.94410523,218.58,218.5,21.94410523]
[1731356460911,21.94410523,218.56,218.48,21.94410523]
[1731356461414,21.94410523,218.58,218.5,21.94410523]
[1731356461634,21.94410523,218.6,218.52,21.94410523]
[1731356461838,21.94410523,218.66,218.58,21.94410523]
[1731356462026,6.0623,218.79,218.65,21.94410523]
[1731356462232,4.75312902,218.89,218.58,6.1074]
[1731356462233,21.94410523,218.78,218.71,21.94410523]
[1731356462508,21.94410523,218.78,218.72,23.776884]
[1731356463123,21.94410523,218.8,218.72,23.776884]
[1731356463332,21.94410523,218.8,218.73,21.94410523]
[1731356463545,21.94410523,218.78,218.71,21.94410523]
[1731356463837,21.94410523,218.78,218.7,23.776884]
[1731356464012,21.94410523,218.76,218.7,23.776884]
[1731356464220,21.94410523,218.76,218.67,21.94410523]
[1731356464441,21.94410523,218.76,218.69,21.94410523]
[1731356464744,21.94410523,218.78,218.7,23.776884]
[1731356464917,21.94410523,218.78,218.71,21.94410523]
[1731356465234,21.94410523,218.8,218.72,23.776884]
[1731356465431,21.94410523,218.8,218.73,21.94410523]
[1731356465735,21.94410523,218.8,218.74,23.776884]
[1731356465914,21.94410523,218.8,218.73,21.94410523]
[1731356466111,21.94410523,218.85,218.77,21.94410523]
[1731356466340,21.94410523,218.83,218.78,23.776884]
[1731356466836,21.94410523,218.83,218.76,23.776884]
[1731356467732,21.94410523,218.82,218.74,21.94410523]
[1731356467935,21.94410523,218.8,218.72,21.94410523]
[1731356468618,21.94410523,218.8,218.68,0.1]
[1731356468619,21.94410523,218.76,218.68,21.94410523]
[1731356469030,21.94410523,218.76,218.69,23.776884]
[1731356469215,21.94410523,218.76,218.68,21.94410523]
[1731356469410,21.94410523,218.78,218.7,21.94410523]
[1731356470077,21.94410523,218.76,218.68,21.94410523]
[1731356470216,21.94410523,218.74,218.68,21.94410523]
[1731356470842,21.94410523,218.74,218.69,23.776884]
[1731356471337,21.94410523,218.76,218.69,23.776884]
[1731356472125,21.94410523,218.74,218.69,23.776884]
[1731356472342,21.94410295,218.74,218.67,23.776884]
[1731356472717,21.94410523,218.73,218.67,23.776884]
[1731356472939,16.91417094,218.87,218.6,0.1]
[1731356472940,21.94410523,218.68,218.6,21.94410523]
[1731356473242,21.94410523,218.68,218.61,21.94410523]
[1731356473554,21.94410523,218.69,218.6,21.94410523]
[1731356473920,21.94410523,218.71,218.62,21.94410523]
[1731356474344,21.94410523,218.69,218.63,23.776884]
[1731356474831,21.94410523,218.69,218.61,23.776884]
[1731356475038,21.94410523,218.69,218.49,2.74916495]
[1731356475039,21.94410523,218.64,218.57,21.94410523]
[1731356475333,21.94410523,218.64,218.55,21.94410523]
[1731356475523,21.94410523,218.64,218.57,21.94410523]
[1731356475724,21.94410523,218.68,218.59,21.94410523]
[1731356475922,21.94410523,218.7,218.63,21.94410523]
[1731356476446,21.94410523,218.7,218.64,23.776884]
[1731356478550,21.94410523,218.68,218.62,23.776884]
[1731356478846,21.94410523,218.68,218.5,2.81646543]
[1731356478847,21.94410523,218.68,218.59,21.94410523]
[1731356479032,21.94410523,218.66,218.57,21.94410523]
[1731356479522,4.32375105,218.78,218.49,16.2619]
[1731356479523,21.94410523,218.62,218.53,21.94410523]
[1731356480428,21.94410523,218.62,218.55,21.94410523]
[1731356480642,21.94410523,218.64,218.57,21.94410523]
[1731356480942,21.94410523,218.64,218.58,23.776884]
[1731356481152,7.13196932,218.7,218.56,17.59162664]
[1731356481153,21.94410523,218.59,218.56,17.59162664]
[1731356481447,21.94410523,218.68,218.44,6.4313]
[1731356481448,21.94410523,218.56,218.47,21.94410523]
[1731356481747,21.94410523,218.58,218.49,21.94410523]
[1731356482046,21.94410523,218.58,218.51,21.94410523]
[1731356482561,21.94410523,218.62,218.53,21.94410523]
[1731356482840,21.94410523,218.64,218.55,21.94410523]
[1731356483241,21.94410523,218.64,218.56,23.776884]
[1731356483445,9.39529932,218.63,218.56,23.776884]
[1731356483649,21.94410523,218.64,218.56,23.776884]
[1731356483943,21.94410523,218.68,218.6,21.94410523]
[1731356484443,21.94410523,218.68,218.58,21.94410523]
[1731356484642,6.1502,218.71,218.56,23.776884]
[1731356484643,21.94410523,218.64,218.56,45.72098923]
[1731356484827,21.94410523,218.62,218.56,23.776884]
[1731356485029,21.94410523,218.62,218.55,23.776884]
[1731356485241,21.94410523,218.64,218.56,21.94410523]
[1731356485625,21.94410523,218.6,218.52,21.94410523]
[1731356486547,21.94410523,218.58,218.5,21.94410523]
[1731356486844,21.94410523,218.6,218.52,21.94410523]
[1731356487026,29.07607455,218.68,218.52,21.94410523]
[1731356487027,21.94410523,218.62,218.52,21.94410523]
[1731356487229,21.94410523,218.62,218.54,21.94410523]
[1731356487625,21.94410523,218.64,218.55,23.776884]
[1731356488028,21.94410523,218.64,218.56,21.94410523]
[1731356488621,21.94410523,218.64,218.57,23.776884]
[1731356488835,21.94410523,218.66,218.59,23.776884]
[1731356489637,21.94410523,218.7,218.62,21.94410523]
[1731356489957,21.94410523,218.7,218.61,23.776884]
[1731356489958,21.94410523,218.72,218.64,21.94410523]
[1731356490167,21.94410523,218.74,218.66,21.94410523]
[1731356490653,21.94410523,218.71,218.63,21.94410523]
[1731356490957,21.94410523,218.71,218.64,23.776884]
[1731356492037,21.94410523,218.76,218.68,21.94410523]
[1731356492255,21.94410523,218.74,218.64,45.72098923]
[1731356492438,21.94410523,218.72,218.64,45.72098923]
[1731356494854,21.94410523,218.7,218.62,21.94410523]
[1731356495051,21.94410523,218.66,218.58,21.94410523]
[1731356495664,21.94410523,218.64,218.57,6.5036]
[1731356496156,4.32465891,218.7,218.57,6.5036]
[1731356496157,21.94410523,218.66,218.57,6.5036]
[1731356496657,21.94410523,218.68,218.6,21.94410523]
[1731356496864,21.94410523,218.68,218.58,21.94410523]
[1731356497366,21.94410523,218.68,218.59,23.776884]
[1731356497738,21.94410523,218.7,218.63,23.776884]
[1731356497940,21.94410523,218.7,218.61,23.776884]
[1731356498573,21.94410523,218.62,218.5,6.5454]
[1731356498874,21.94410523,218.59,218.5,28.48950523]
[1731356499050,21.94410523,218.59,218.52,21.94410523]
[1731356499661,21.94410523,218.61,218.52,21.94410523]
[1731356499869,21.94410523,218.63,218.54,21.94410523]
[1731356500241,21.94410523,218.63,218.55,23.776884]
[1731356501163,21.94410523,218.65,218.56,21.94410523]
[1731356501666,21.94410523,218.65,218.58,21.94410523]
[1731356501841,21.94410523,218.69,218.6,21.94410523]
[1731356502042,21.94410523,218.69,218.61,23.776884]
[1731356503264,21.94410523,218.63,218.56,21.94410523]
[1731356503578,17.12420486,218.74,218.59,23.776884]
[1731356503579,21.94410523,218.65,218.59,23.776884]
[1731356503948,21.94410523,218.67,218.59,23.776884]
[1731356504849,21.94410523,218.67,218.6,21.94410523]
[1731356505357,21.94410523,218.67,218.61,23.776884]
[1731356505552,21.94410523,218.71,218.62,21.94410523]
[1731356505864,21.94410523,218.71,218.64,21.94410523]
[1731356506176,21.94410523,218.71,218.65,23.776884]
[1731356506763,21.94410523,218.71,218.63,23.776884]
[1731356508345,21.94410523,218.71,218.64,21.94410523]
[1731356508749,21.94410523,218.71,218.65,23.776884]
[1731356508952,21.94410523,218.75,218.67,23.776884]
[1731356509366,21.94410523,218.75,218.68,21.94410523]
[1731356509673,21.94410523,218.75,218.69,23.776884]
[1731356510062,21.94410523,218.75,218.67,23.776884]
[1731356512581,21.94410523,218.75,218.68,21.94410523]
[1731356512762,21.94410523,218.75,218.69,23.776884]
[1731356513280,21.94410523,218.79,218.71,23.776884]
[1731356513578,21.94410523,218.79,218.73,23.776884]
[1731356514475,21.94410523,218.83,218.76,21.94410523]
[1731356514683,21.94410523,218.85,218.78,23.776884]
[1731356515057,21.94410523,218.87,218.8,23.776884]
[1731356515252,3.39635142,218.86,218.8,23.776884]
[1731356515472,21.94410523,218.87,218.8,23.776884]
[1731356515984,21.94410523,218.85,218.8,23.776884]
[1731356516282,21.94410523,218.83,218.76,23.776884]
[1731356516988,21.94410523,218.77,218.6,0.1]
[1731356517166,21.94410523,218.79,218.64,21.94410523]
[1731356517167,21.94410523,218.72,218.64,21.94410523]
[1731356518184,21.94410523,218.74,218.66,21.94410523]
[1731356518681,21.94410523,218.74,218.67,23.776884]
[1731356518898,21.94410523,218.72,218.59,6.3266]
[1731356519183,21.94410523,218.7,218.61,21.94410523]
[1731356519569,21.94410523,218.68,218.59,28.27070523]
[1731356519769,23.876884,218.78,218.59,28.27070523]
[1731356519770,21.94410523,218.66,218.59,6.3266]
[1731356520084,21.94410523,218.64,218.59,6.3266]
[1731356520288,21.94410523,218.64,218.55,21.94410523]
[1731356520481,21.94410523,218.68,218.59,21.94410523]
[1731356520664,21.94410523,218.7,218.63,21.94410523]
[1731356520860,21.94410523,218.72,218.63,21.94410523]
[1731356521067,21.94410523,218.77,218.68,21.94410523]
[1731356521369,21.94410523,218.77,218.65,6.2577]
[1731356521370,21.94410523,218.81,218.72,21.94410523]
[1731356521564,21.94410523,218.83,218.75,23.776884]
[1731356521763,21.94410523,218.83,218.77,23.776884]
[1731356522659,21.94410523,218.81,218.73,23.776884]
[1731356522881,35.77902151,218.82,218.75,23.776884]
[1731356523081,35.77902151,218.9,218.75,23.776884]
[1731356523082,35.77902151,218.84,218.75,23.776884]
[1731356523592,35.77902151,218.82,218.75,23.776884]
[1731356523761,35.77902151,218.88,218.78,35.77902151]
[1731356524082,35.77902151,218.94,218.86,35.77902151]
[1731356524485,35.77902151,218.92,218.84,35.77902151]
[1731356524658,35.77902151,218.9,218.82,35.77902151]
[1731356525180,35.77902151,218.88,218.8,35.77902151]
[1731356525481,35.77902151,218.86,218.78,35.77902151]
[1731356525658,35.77902151,218.84,218.77,23.776884]
[1731356525863,35.77902151,218.86,218.78,35.77902151]
[1731356526161,9.11074532,218.98,218.77,23.776884]
[1731356526162,35.77902151,218.88,218.8,35.77902151]
[1731356526369,35.77902151,218.92,218.84,35.77902151]
[1731356526564,35.77902151,218.88,218.8,35.77902151]
[1731356526788,35.77902151,218.86,218.78,35.77902151]
[1731356526988,8.27980896,218.85,218.76,35.77902151]
[1731356527177,0.1,218.99,218.73,6.6265]
[1731356527178,35.77902151,218.9,218.82,35.77902151]
[1731356527384,0.2,218.99,218.73,6.7265]
[1731356527385,35.77902151,218.88,218.8,35.77902151]
[1731356527574,35.77902151,218.88,218.78,35.77902151]
[1731356527770,35.77902151,218.86,218.78,35.77902151]
[1731356527972,35.77902151,218.82,218.74,59.55590551]
[1731356528185,35.77902151,218.84,218.74,35.77902151]
[1731356528975,35.77902151,218.82,218.73,6.6265]
[1731356530164,35.77902151,218.82,218.74,23.776884]
[1731356530781,35.77902151,218.8,218.73,6.6265]
[1731356531703,35.77902151,218.82,218.74,23.776884]
[1731356531872,6.0611,218.87,218.65,20.45271999]
[1731356531873,35.77902151,218.78,218.69,35.77902151]
[1731356532190,35.77902151,218.78,218.65,6.6443]
[1731356532191,35.77902151,218.76,218.67,35.77902151]
[1731356532394,0.1,218.85,218.65,6.6443]
[1731356532395,35.77902151,218.74,218.65,42.42332151]
[1731356532690,35.77902151,218.76,218.67,35.77902151]
[1731356533077,35.77902151,218.74,218.65,42.42332151]
[1731356533481,35.77902151,218.74,218.66,23.776884]
[1731356533678,35.77902151,218.72,218.66,23.776884]
[1731356533884,35.77902151,218.72,218.57,35.87902151]
[1731356533885,35.77902151,218.68,218.61,35.77902151]
[1731356534092,35.77902151,218.68,218.59,41.95452151]
[1731356534305,35.77902151,218.62,218.53,41.95452151]
[1731356534597,35.77902151,218.58,218.53,6.1755]
[1731356534899,35.77902151,218.58,218.51,35.77902151]
[1731356535478,35.77902151,218.56,218.47,41.90332151]
[1731356535985,35.77902151,218.54,218.47,41.90332151]
[1731356537175,35.77902151,218.58,218.49,35.77902151]
[1731356537774,35.77902151,218.58,218.5,35.77902151]
[1731356537981,35.77902151,218.6,218.52,35.77902151]
[1731356538198,35.77902151,218.58,218.5,35.77902151]
[1731356538794,35.77902151,218.54,218.46,35.77902151]
[1731356539174,35.77902151,218.54,218.44,35.77902151]
[1731356539974,35.77902151,218.54,218.46,35.77902151]
[1731356540178,35.77902151,218.56,218.48,35.77902151]
[1731356541193,35.77902151,218.54,218.46,35.77902151]
[1731356542907,35.77902151,218.56,218.48,35.77902151]
[1731356543196,6.6129,218.61,218.52,35.77902151]
[1731356543197,35.77902151,218.6,218.52,35.77902151]
[1731356543400,6.0119,218.67,218.56,35.77902151]
[1731356543579,35.77902151,218.65,218.58,35.77902151]
[1731356543905,35.77902151,218.67,218.58,35.77902151]
[1731356544077,35.77902151,218.67,218.6,35.77902151]
[1731356544276,35.87902151,218.61,218.38,0.1]
[1731356544494,35.77902151,218.51,218.42,35.77902151]
[1731356544896,22.08192603,218.49,218.4,22.08192603]
[1731356545128,22.08192603,218.49,218.4,23.1284985]
[1731356545278,22.08192603,218.49,218.41,1.04652455]
[1731356545894,22.08192603,218.47,218.41,1.04652455]
[1731356546082,22.08192603,218.47,218.38,22.08192603]
[1731356546288,22.08192603,218.49,218.4,22.08192603]
[1731356546691,8.8525412,218.48,218.4,22.08192603]
[1731356546887,22.08192603,218.53,218.44,22.08192603]
[1731356547081,0.2,218.61,218.47,23.776884]
[1731356547082,22.08192603,218.55,218.47,23.776884]
[1731356547495,22.08192603,218.53,218.47,23.776884]
[1731356547698,22.08192603,218.53,218.45,23.776884]
[1731356547884,22.08192603,218.49,218.45,23.776884]
[1731356548086,22.08192603,218.51,218.43,23.776884]
[1731356548292,22.08192603,218.47,218.38,22.08192603]
[1731356549076,22.08192603,218.47,218.4,22.08192603]
[1731356549284,22.08192603,218.47,218.36,6.0484]
[1731356549285,22.08192603,218.47,218.38,22.08192603]
[1731356549806,22.08192603,218.53,218.44,22.08192603]
[1731356550103,22.08192603,218.51,218.44,22.08192603]
[1731356550281,22.08192603,218.53,218.45,23.776884]
[1731356551495,22.08192603,218.55,218.46,22.08192603]
[1731356551697,22.08192603,218.57,218.48,22.08192603]
[1731356551900,22.08192603,218.57,218.49,23.776884]
[1731356552601,22.08192603,218.58,218.49,22.08192603]
[1731356552802,22.08192603,218.55,218.47,45.85881003]
[1731356553099,22.08192603,218.57,218.49,22.08192603]
[1731356553608,22.08192603,218.59,218.51,22.08192603]
[1731356553785,22.08192603,218.55,218.47,22.08192603]
[1731356553978,12.79300823,218.66,218.35,22.18192603]
[1731356553979,22.08192603,218.53,218.45,22.08192603]
[1731356554201,22.08192603,218.53,218.35,22.08192603]
[1731356554202,22.08192603,218.51,218.43,22.08192603]
[1731356554420,22.08192603,218.51,218.41,22.08192603]
[1731356556307,22.08192603,218.49,218.41,22.08192603]
[1731356556606,22.08192603,218.51,218.41,22.08192603]
[1731356556804,22.08192603,218.53,218.43,22.08192603]
[1731356558490,22.08192603,218.51,218.43,22.08192603]
[1731356559102,22.08192603,218.51,218.37,20.1]
[1731356559287,22.08192603,218.53,218.43,22.08192603]
[1731356559494,22.08192603,218.56,218.48,22.08192603]
[1731356562812,22.08192603,218.58,218.48,22.08192603]
[1731356563509,22.08192603,218.58,218.5,22.08192603]
[1731356563717,22.08192603,218.56,218.48,22.08192603]
[1731356564216,22.08192603,218.58,218.5,22.08192603]
[1731356564796,22.08192603,218.58,218.48,22.08192603]
[1731356564997,22.08192603,218.58,218.4,0.1]
[1731356565295,22.08192603,218.56,218.48,22.08192603]
[1731356565495,22.08192603,218.56,218.46,22.08192603]
[1731356565694,22.08192603,218.56,218.4,0.1]
[1731356566010,22.08192603,218.56,218.46,22.08192603]
[1731356566595,22.08192603,218.56,218.4,0.1]
[1731356566798,22.08192603,218.56,218.47,22.08192603]
[1731356567709,6.78139203,218.64,218.38,0.1]
[1731356567710,22.08192603,218.54,218.45,22.08192603]
[1731356569703,22.08192603,218.54,218.47,22.08192603]
[1731356571035,22.08192603,218.59,218.49,22.08192603]
[1731356571323,22.08192603,218.59,218.51,22.08192603]
[1731356573109,22.08192603,218.61,218.53,22.08192603]
[1731356574303,22.08192603,218.65,218.56,22.08192603]
[1731356574521,6.4913,218.67,218.6,22.08192603]
[1731356574719,28.57322603,218.67,218.58,22.08192603]
[1731356575305,22.08192603,218.65,218.58,22.08192603]
[1731356576631,28.57322603,218.67,218.58,22.08192603]
[1731356576823,6.4913,218.67,218.6,22.08192603]
[1731356577019,9.4440045,218.66,218.58,22.08192603]
[1731356577204,28.57322603,218.67,218.58,22.08192603]
[1731356577605,28.57322603,218.67,218.6,22.08192603]
[1731356577820,16.0966,218.68,218.6,22.08192603]
[1731356578218,22.08192603,218.71,218.62,22.08192603]
[1731356578424,22.08192603,218.69,218.6,22.08192603]
[1731356578627,22.08192603,218.67,218.58,22.08192603]
[1731356579532,22.08192603,218.67,218.6,22.08192603]
[1731356579711,22.08192603,218.69,218.6,22.08192603]
[1731356580934,22.08192603,218.67,218.49,20.0]
[1731356581222,22.08192603,218.67,218.59,22.08192603]
[1731356583036,22.08192603,218.69,218.59,22.08192603]
[1731356585512,22.08192603,218.67,218.59,22.08192603]
[1731356586610,22.08192603,218.69,218.61,22.08192603]
[1731356586828,6.437,218.72,218.65,13.7735418]
[1731356587225,15.1834,218.73,218.65,13.7735418]
[1731356587912,15.1834,218.73,218.67,13.7735418]
[1731356588115,6.3053,218.77,218.71,13.7735418]
[1731356588431,16.2705,218.79,218.71,13.7735418]
[1731356588831,34.55488268,218.81,218.73,22.02263146]
[1731356589013,34.55488268,218.81,218.68,22.02263146]
[1731356589014,6.3053,218.82,218.75,22.02263146]
[1731356589210,38.29313146,218.85,218.77,22.02263146]
[1731356589614,38.29313146,218.85,218.79,22.02263146]
[1731356589812,28.32793146,218.87,218.79,22.02263146]
[1731356590030,28.32793146,218.87,218.7,0.1]
[1731356590031,28.32793146,218.87,218.81,22.02263146]
[1731356590515,6.3053,218.87,218.81,22.02263146]
[1731356590721,22.02263146,218.88,218.81,22.02263146]
[1731356591940,22.02263146,218.9,218.81,22.02263146]
[1731356592113,22.02263146,218.9,218.83,22.02263146]
[1731356592313,22.02263146,218.9,218.81,22.02263146]
[1731356592719,22.02263146,218.88,218.81,22.02263146]
[1731356593036,22.02263146,218.86,218.77,22.02263146]
[1731356593223,22.02263146,218.82,218.75,22.02263146]
[1731356593939,22.02263146,218.78,218.71,22.02263146]
[1731356595836,22.02263146,218.78,218.69,22.02263146]
[1731356596226,22.02263146,218.78,218.71,22.02263146]
[1731356597031,22.02263146,218.78,218.71,21.87884346]
[1731356597744,22.02263146,218.78,218.7,23.776884]
[1731356598442,22.02263146,218.78,218.71,22.02263146]
[1731356598824,22.02263146,218.78,218.7,23.776884]
[1731356599447,22.02263146,218.78,218.71,22.02263146]
[1731356599751,22.02263146,218.8,218.71,22.02263146]
[1731356599931,22.02263146,218.78,218.71,22.02263146]
[1731356600847,6.58139203,218.87,218.74,22.02263146]
[1731356601038,22.02263146,218.83,218.75,23.776884]
[1731356601635,22.02263146,218.83,218.76,22.02263146]
[1731356601830,22.02263146,218.85,218.77,23.776884]
[1731356602232,22.02263146,218.9,218.65,6.2871]
[1731356602233,22.02263146,218.78,218.65,6.0871]
[1731356602444,22.02263146,218.73,218.65,22.02263146]
[1731356603751,22.02263146,218.72,218.63,37.80163146]
[1731356604448,22.02263146,218.72,218.64,23.776884]
[1731356605438,22.02263146,218.76,218.68,23.776884]